fUST/lending_fUST_20240319
["ID","MTS","AMOUNT","RATE_DAILY","PERIOD"]
[319556881,1710855234551,-184.28026577,0.00069297,7]
[319556882,1710855234571,-931.30005779,0.00069297,7]
[319556883,1710855234592,-1563.9414618,0.00069298,2]
[319556884,1710855234612,-561.04558472,0.00069997,7]
[319556885,1710855234632,-763.74291541,0.00069998,7]
[319556886,1710855234652,-767.66075499,0.00069999,2]
[319556887,1710855240627,154.5,0.0005649,30]
[319556888,1710855306897,-155.0,0.00059499,30]
[319556889,1710855363057,1186.191642,0.000575,120]
[319556890,1710855435903,-606.0,0.00058904,2]
[319556891,1710855437164,537.02866215,0.00031774,7]
[319556892,1710855437663,537.02866215,0.00042175,30]
[319556893,1710855501773,-114.69087421,0.00058904,2]
[319556894,1710855501794,-0.27670732,0.00059499,30]
[319556895,1710855501815,-154.8915759,0.00069998,7]
[319556896,1710855501835,-75.60250557,0.00069999,2]
[319556897,1710855512132,170.86140211,0.00069999,7]
[319556898,1710855536562,1151.67693489,0.00069999,120]
[319556899,1710855555605,2000.0,0.00053827,50]
[319556900,1710855572633,1066.85210832,0.000575,2]
[319556901,1710855587092,7335.90302008,0.000575,120]
[319556903,1710855637494,-207.83566526,0.00069198,7]
[319556904,1710855654203,6907.16433474,0.000691,30]
[319556905,1710855677699,37336.9959053,0.00055,30]
[319556906,1710855677725,50000.0,0.00055,30]
[319556907,1710855677750,25303.13846928,0.00055,30]
[319556908,1710855677774,50000.0,0.00055,30]
[319556909,1710855677805,26346.89624845,0.00055,30]
[319556910,1710855677830,19105.80504223,0.00055,30]
[319556911,1710855738778,307.0,0.00026759,2]
[319556912,1710855738807,194.22675134,0.00026759,2]
[319556913,1710855739831,501.22675134,0.00043531,30]
[319556914,1710855772621,-501.22675134,0.00055502,120]
[319556915,1710855772641,-501.22675134,0.000607,120]
[319556916,1710855772662,-501.22675134,0.00062419,120]
[319556917,1710855772683,-3500.000517,0.00069,120]
[319556918,1710855772704,-5674.23097966,0.00069199,2]
[319556919,1710855772725,-600.0,0.0007,60]
[319556920,1710855772746,-400.0,0.0007,120]
[319556921,1710855772766,-1000.0,0.00075,120]
[319556922,1710855772788,-508.6087039,0.00077171,2]
[319556923,1710855772810,-15584.12819566,0.00077269,7]
[319556924,1710855772834,-1000.0,0.0008,120]
[319556925,1710855772855,-1000.0,0.0008,120]
[319556926,1710855772876,-7952.92,0.0008,120]
[319556927,1710855772896,-6889.43134976,0.00081451,120]
[319556928,1710855798452,23211.11767625,0.00055,4]
[319556929,1710855958119,-596.42927125,0.00055988,4]
[319556930,1710856036985,417.68895945,0.00050872,60]
[319556931,1710856043446,-1327.84295986,0.00055988,4]
[319556932,1710856068364,-1000.0,0.0008,120]
[319556933,1710856068374,-351.97,0.00081451,120]
[319556934,1710856117878,-1351.97,0.00055989,120]
[319556935,1710856118103,-1000.0,0.00075,120]
[319556936,1710856118116,-351.97,0.00077,120]
[319557004,1710856232564,-2000.0,0.0005597,120]
[319557006,1710856232573,-2000.0,0.0005598,120]
[319557008,1710856232582,-239.2414617,0.00075169,4]
[319557010,1710856232592,-648.03,0.00077,120]
[319557012,1710856232601,-1734.9604204,0.00077,120]
[319557435,1710856238270,-265.0395796,0.00077,120]
[319557436,1710856238284,-1582.40643564,0.00077,120]
[319557437,1710856238335,-417.59356436,0.00077,120]
[319557438,1710856238348,-5000.0,0.0008,120]
[319557439,1710856238362,-239.2414617,0.00080169,4]
[319557440,1710856238373,-2758.59865024,0.00081451,120]
[319557441,1710856238384,-684.69211457,0.00081996,7]
[319557442,1710856238395,-600.0,0.00081997,120]
[319557443,1710856238408,-603.43855769,0.00081999,7]
[319557444,1710856238420,-500.0,0.00082191,120]
[319557445,1710856238432,-1000.0,0.00083,120]
[319557446,1710856238444,-10000.0,0.0008308,120]
[319557447,1710856238458,-16636.5,0.00084,120]
[319557448,1710856238468,-10000.0,0.00084741,120]
[319557449,1710856238479,-1000.0,0.00085,120]
[319557450,1710856238489,-1000.0,0.00085,120]
[319557451,1710856238501,-239.2414617,0.00085169,4]
[319557452,1710856238512,-748.66616135,0.000855,120]
[319557453,1710856238526,-251.33383865,0.000855,120]
[319557454,1710856238538,-1000.0,0.000855,120]
[319557455,1710856238549,-396.84902842,0.000855,120]
[319557456,1710856238562,-603.15097158,0.000855,120]
[319557457,1710856238573,-1000.0,0.000855,120]
[319557458,1710856238585,-1000.0,0.000855,120]
[319557459,1710856238596,-677.74902843,0.000855,120]
[319557462,1710856240369,-322.25097157,0.000855,120]
[319557463,1710856240382,-1000.0,0.000855,120]
[319557464,1710856240393,-1000.0,0.000855,120]
[319557465,1710856240404,-1000.0,0.000855,120]
[319557466,1710856240416,-601.63471375,0.000855,120]
[319557467,1710856240430,-398.36528625,0.000855,120]
[319557468,1710856240440,-627.91593781,0.000855,120]
[319557469,1710856240456,-372.08406219,0.000855,120]
[319557470,1710856240467,-931.94533005,0.000855,120]
[319557471,1710856240486,-68.05466995,0.000855,120]
[319557472,1710856240602,-5171.42567,0.00085531,30]
[319557473,1710856240613,-1916.51672333,0.00086436,120]
[319557474,1710856240626,-8083.48327667,0.00086436,120]
[319557475,1710856240637,-15095.99,0.000879,120]
[319557476,1710856240647,-816.54,0.000879,60]
[319557477,1710856240657,-157.3671609,0.00087988,4]
[319557478,1710856240666,-246.95225201,0.00087989,7]
[319557479,1710856240676,-50000.0,0.0008799,120]
[319557480,1710856240686,-49999.0,0.0008799,120]
[319557481,1710856240695,-49999.0,0.0008799,120]
[319557482,1710856240707,-644.5791473,0.00087998,7]
[319557483,1710856240717,-533.12309577,0.00088,61]
[319557484,1710856240727,-1416491.96506742,0.00088,120]
[319557506,1710856243378,-1422670.66120759,0.00088,120]
[319557507,1710856243388,-10000.0,0.00088165,120]
[319557508,1710856243397,-30001.45,0.00088879,120]
[319557509,1710856243407,-100000.0,0.0008888,120]
[319557510,1710856243417,-2431.8886482,0.000889,120]
[319557511,1710856243427,-216.61016513,0.00089898,2]
[319557512,1710856243437,-10000.0,0.00089928,120]
[319557513,1710856243447,-156.66351244,0.00089998,7]
[319557514,1710856243459,-339.85609608,0.00089998,7]
[319557515,1710856243469,-223.64235676,0.00089998,7]
[319557516,1710856243478,-434.73759368,0.00089999,7]
[319557517,1710856243487,-1746.96,0.00089999,120]
[319557518,1710856243497,-2909.44,0.00089999,120]
[319557519,1710856243507,-906.55,0.00089999,120]
[319557520,1710856243516,-500.0,0.00089999,120]
[319557521,1710856243526,-500.0,0.00089999,120]
[319557522,1710856243535,-1748.07,0.00089999,120]
[319557523,1710856243545,-611.45,0.00089999,120]
[319557524,1710856243555,-10000.0,0.00089999,120]
[319557525,1710856243565,-1048.14,0.00089999,120]
[319557526,1710856243574,-5757.22,0.00089999,120]
[319557527,1710856243584,-500.0,0.00089999,120]
[319557528,1710856243593,-2477.48,0.00089999,120]
[319557529,1710856243603,-4166.71,0.00089999,120]
[319557530,1710856243613,-500.0,0.00089999,120]
[319557531,1710856243623,-541.48,0.00089999,90]
[319557532,1710856243632,-2952.03,0.00089999,120]
[319557533,1710856243642,-6343.91,0.00089999,120]
[319557534,1710856243652,-9398.36,0.00089999,120]
[319557535,1710856243661,-5098.09,0.00089999,120]
[319557536,1710856243671,-500.0,0.00089999,120]
[319557537,1710856243680,-2331.1,0.00089999,120]
[319557538,1710856243690,-831.68,0.00089999,60]
[319557539,1710856243700,-1328.99,0.00089999,120]
[319557540,1710856243712,-3484.33,0.00089999,120]
[319557541,1710856243721,-1000.0,0.0009,120]
[319557542,1710856243731,-50000.0,0.0009,120]
[319557543,1710856243741,-100000.0,0.0009,120]
[319557544,1710856243751,-3614.76062,0.0009,120]
[319557545,1710856243761,-1000.0,0.0009,120]
[319557546,1710856243770,-5000.0,0.0009,120]
[319557547,1710856243779,-10000.0,0.00091727,120]
[319557548,1710856243788,-66565.042701,0.00092,120]
[319557549,1710856243797,-2658.0,0.00092,120]
[319557550,1710856243806,-3000.0,0.00093,120]
[319557551,1710856243815,-2000.0,0.00093,120]
[319557552,1710856243825,-10000.0,0.00093561,120]
[319557553,1710856243834,-347.07509657,0.00094,120]
[319557554,1710856243843,-868.14312116,0.00094577,2]
[319557555,1710856243852,-516.25355896,0.00094578,2]
[319557556,1710856243862,-156.10358765,0.00094578,14]
[319557557,1710856243871,-280.67323888,0.00094578,14]
[319557558,1710856243881,-182.49491194,0.00094578,14]
[319557559,1710856243890,-546.40747589,0.00094578,14]
[319557560,1710856243899,-1352.72,0.00094578,120]
[319557561,1710856243909,-500.0,0.00094578,120]
[319557562,1710856243919,-5014.34,0.00094578,120]
[319557563,1710856243929,-1180.03337198,0.00094579,14]
[319557564,1710856243938,-162.46753871,0.00094579,14]
[319557565,1710856243948,-500.0,0.00094579,120]
[319557566,1710856243960,-500.0,0.00094579,120]
[319557567,1710856243969,-500.0,0.00094579,7]
[319557568,1710856243978,-603.74521374,0.00094579,120]
[319557569,1710856243987,-879.01,0.00094579,120]
[319557570,1710856243997,-500.0,0.00094579,120]
[319557571,1710856244006,-1308.75,0.00094579,120]
[319557572,1710856244016,-500.0,0.00094579,120]
[319557573,1710856244025,-500.0,0.00094579,120]
[319557574,1710856244034,-2345.92,0.00094579,120]
[319557575,1710856244044,-500.0,0.00094579,120]
[319557576,1710856244053,-500.0,0.00094579,120]
[319557577,1710856244062,-500.0,0.00094579,120]
[319557578,1710856244071,-2248.95,0.00094579,120]
[319557579,1710856244081,-563.71,0.00094579,120]
[319557580,1710856244089,-500.0,0.00094579,120]
[319557581,1710856244099,-854.34,0.00094579,120]
[319557582,1710856244108,-500.0,0.00094579,120]
[319557583,1710856244117,-950.6,0.00094579,120]
[319557584,1710856244126,-500.0,0.00094579,120]
[319557585,1710856244135,-500.0,0.00094579,120]
[319557586,1710856244145,-498.86874414,0.00094579,120]
[319557587,1710856244154,-900.21,0.00094579,120]
[319557588,1710856244163,-492.0,0.00095,120]
[319557589,1710856244173,-216.61016512,0.0009539,2]
[319557590,1710856244183,-10000.0,0.00095433,120]
[319557591,1710856244192,-150.5,0.0009547,35]
[319557592,1710856244203,-150.5,0.0009548,35]
[319557593,1710856244216,-150.5,0.0009549,35]
[319557594,1710856244226,-5000.0,0.0009549,120]
[319557595,1710856244235,-5000.0,0.0009549,120]
[319557596,1710856244244,-5000.0,0.0009549,120]
[319557597,1710856244253,-5000.0,0.0009549,120]
[319557598,1710856244263,-5000.0,0.0009549,120]
[319557599,1710856244273,-5000.0,0.0009549,120]
[319557600,1710856244283,-10000.0,0.00097,120]
[319557601,1710856244293,-10000.0,0.00097,120]
[319557602,1710856244302,-10000.0,0.00097,120]
[319557603,1710856244311,-10000.0,0.00097341,120]
[319557604,1710856244320,-307.9946436,0.0009737,2]
[319557605,1710856244329,-17469.75,0.00097879,120]
[319557606,1710856244338,-17469.75,0.00097879,120]
[319557607,1710856244348,-17469.75,0.00097879,120]
[319557608,1710856244357,-17469.75,0.00097879,120]
[319557609,1710856244367,-17469.75,0.00097879,120]
[319557610,1710856244376,-17469.75,0.00097879,120]
[319557611,1710856244386,-151.0,0.00097879,120]
[319557612,1710856244395,-1667.75,0.00097879,120]
[319557613,1710856244404,-151.0,0.00097879,120]
[319557614,1710856244413,-151.0,0.00097879,120]
[319557615,1710856244422,-221.474907,0.00097879,120]
[319557616,1710856244431,-151.0,0.00097879,120]
[319557617,1710856244440,-151.0,0.00097879,120]
[319557618,1710856244450,-2322.82,0.00097899,120]
[319557619,1710856244463,-649.67252467,0.00097899,120]
[319557620,1710856244472,-17469.75,0.00097899,120]
[319557621,1710856244480,-624.71,0.00097899,120]
[319557622,1710856244490,-585.97,0.00097899,120]
[319557623,1710856244499,-1423.48,0.00097899,120]
[319557624,1710856244508,-1674.17,0.00097899,120]
[319557625,1710856244518,-1250.29,0.00097899,120]
[319557626,1710856244527,-150.5,0.0009797,35]
[319557627,1710856244536,-150.5,0.0009798,35]
[319557628,1710856244546,-150.5,0.0009799,35]
[319557629,1710856244555,-204.98847702,0.00097998,14]
[319557630,1710856244564,-454.52812411,0.00097998,14]
[319557631,1710856244573,-17469.75,0.00097998,120]
[319557632,1710856244582,-200.74622768,0.00097999,14]
[319557633,1710856244592,-471.39348729,0.00097999,14]
[319557634,1710856244601,-208.54789466,0.00097999,14]
[319557635,1710856244610,-15425.62916795,0.00097999,14]
[319557636,1710856244620,-17469.75,0.00097999,120]
[319557637,1710856244630,-17469.75,0.00097999,120]
[319557638,1710856244639,-17469.75,0.00097999,120]
[319557639,1710856244648,-17469.75,0.00097999,120]
[319557640,1710856244657,-17469.75,0.00097999,120]
[319557641,1710856244666,-17469.75,0.00097999,120]
[319557642,1710856244676,-17469.75,0.00097999,120]
[319557643,1710856244686,-17469.75,0.00097999,120]
[319557644,1710856244695,-17469.75,0.00097999,120]
[319557645,1710856244705,-17469.75,0.00097999,120]
[319557646,1710856244718,-17469.75,0.00097999,120]
[319557647,1710856244728,-17469.75,0.00097999,120]
[319557648,1710856244737,-17469.75,0.00097999,120]
[319557649,1710856244747,-17469.75,0.00097999,120]
[319557650,1710856244757,-17469.75,0.00097999,120]
[319557651,1710856244766,-17469.78878945,0.00097999,120]
[319557652,1710856244775,-151.0,0.00097999,120]
[319557653,1710856244785,-151.0,0.00097999,120]
[319557654,1710856244795,-151.0,0.00097999,120]
[319557655,1710856244804,-151.0,0.00097999,120]
[319557656,1710856244814,-151.0,0.00097999,120]
[319557657,1710856244824,-163.982218,0.00097999,120]
[319557658,1710856244833,-152.416661,0.00097999,120]
[319557659,1710856244843,-151.0,0.00097999,120]
[319557660,1710856244927,-151.0,0.00097999,120]
[319557661,1710856244937,-500.0,0.00098,120]
[319557662,1710856244947,-151.0,0.00098,120]
[319557663,1710856244955,-158.181088,0.00098,120]
[319557664,1710856244966,-158.181088,0.00098,120]
[319557665,1710856244975,-252.280578,0.00098,120]
[319557666,1710856244985,-252.280578,0.00098,120]
[319557667,1710856244994,-250.892833,0.00098,120]
[319557668,1710856245003,-151.0,0.00098,120]
[319557669,1710856245012,-1000.0,0.00099288,120]
[319557670,1710856245021,-579.7937944,0.00099998,14]
[319557671,1710856245030,-312.13544662,0.00099999,14]
[319557672,1710856245039,-500.0,0.001,120]
[319557673,1710856245049,-1208.98052728,0.001,120]
[319557674,1710856245058,-5000.0,0.001,120]
[319557675,1710856245067,-5000.0,0.001,120]
[319557676,1710856245076,-100000.0,0.001,120]
[319557677,1710856245085,-151.0,0.001,120]
[319557678,1710856245094,-600.0,0.001058,120]
[319557679,1710856245104,-155.00620025,0.00107395,14]
[319557680,1710856245113,-2945.18638007,0.00108394,7]
[319557681,1710856245123,-327.92204835,0.00109475,14]
[319557682,1710856245132,-435.06368451,0.00109487,14]
[319557683,1710856245141,-500.0,0.00109488,120]
[319557684,1710856245150,-999.0,0.00109507,120]
[319557685,1710856245160,-500.0,0.00109586,120]
[319557686,1710856245169,-500.0,0.00109586,120]
[319557687,1710856245180,-500.0,0.00109586,120]
[319557688,1710856245190,-2283.55,0.00109586,120]
[319557689,1710856245199,-2283.55,0.00109586,120]
[319557690,1710856245213,-2283.55,0.00109586,120]
[319557691,1710856245223,-2283.55,0.00109586,120]
[319557692,1710856245233,-2283.55,0.00109586,120]
[319557693,1710856245242,-2283.55,0.00109586,120]
[319557694,1710856245251,-2283.55,0.00109586,120]
[319557695,1710856245261,-2283.55,0.00109586,120]
[319557696,1710856245271,-2283.55,0.00109586,120]
[319557697,1710856245280,-2283.55,0.00109586,120]
[319557698,1710856245290,-2283.55,0.00109586,120]
[319557699,1710856245299,-2283.55,0.00109586,120]
[319557700,1710856245308,-2283.55,0.00109586,120]
[319557701,1710856245317,-2283.55,0.00109586,120]
[319557702,1710856245326,-2283.55,0.00109586,120]
[319557703,1710856245336,-2283.55,0.00109586,120]
[319557704,1710856245345,-2283.55,0.00109586,120]
[319557705,1710856245354,-2283.55,0.00109586,120]
[319557706,1710856245364,-2283.55,0.00109586,120]
[319557707,1710856245373,-2283.55,0.00109586,120]
[319557708,1710856245382,-2283.55,0.00109586,120]
[319557709,1710856245392,-2283.55,0.00109586,120]
[319557710,1710856245401,-2283.55,0.00109586,120]
[319557711,1710856245412,-2283.73765546,0.00109586,120]
[319557712,1710856245421,-642.08,0.00109586,120]
[319557713,1710856245431,-158.181088,0.00109586,120]
[319557714,1710856245441,-158.181088,0.00109586,120]
[319557715,1710856245450,-500.0,0.00109586,120]
[319557716,1710856245462,-252.280578,0.00109586,120]
[319557717,1710856245472,-252.280578,0.00109586,120]
[319557718,1710856245482,-500.0,0.00109586,120]
[319557719,1710856245491,-500.0,0.00109586,120]
[319557720,1710856245500,-500.0,0.00109586,120]
[319557721,1710856245509,-151.0,0.00109586,120]
[319557722,1710856245518,-229.63917876,0.00109588,14]
[319557723,1710856245527,-2771.7,0.00109588,120]
[319557724,1710856245537,-500.0,0.00109588,120]
[319557725,1710856245546,-500.0,0.00109588,120]
[319557726,1710856245556,-500.0,0.00109588,120]
[319557727,1710856245564,-1163.91,0.00109588,120]
[319557728,1710856245574,-878.95,0.00109588,120]
[319557729,1710856245583,-865.23,0.00109588,120]
[319557730,1710856245592,-1430.71,0.00109588,120]
[319557731,1710856245602,-500.0,0.00109588,120]
[319557732,1710856245612,-500.0,0.00109588,120]
[319557733,1710856245621,-500.0,0.00109588,120]
[319557734,1710856245631,-500.0,0.00109588,120]
[319557735,1710856245640,-500.0,0.00109588,120]
[319557736,1710856245650,-500.0,0.00109588,120]
[319557737,1710856245658,-790.81,0.00109588,10]
[319557738,1710856245668,-1381.27,0.00109588,120]
[319557739,1710856245677,-250.0,0.00109588,120]
[319557740,1710856245686,-155.20931443,0.00109887,2]
[319557741,1710856245695,-247.23709179,0.00109996,14]
[319557742,1710856245705,-500.0,0.00109996,120]
[319557743,1710856245716,-155.0,0.00109997,14]
[319557744,1710856245725,-429.45007321,0.00109997,14]
[319557745,1710856245735,-268.5783834,0.00109997,2]
[319557746,1710856245746,-156.10658839,0.00109997,14]
[319557747,1710856245755,-219.27368719,0.00109997,14]
[319557748,1710856245764,-155.44799197,0.00109997,14]
[319557749,1710856245773,-228.26916841,0.00109997,14]
[319557750,1710856245783,-295.89554368,0.00109997,14]
[319557751,1710856245792,-179.81023046,0.00109997,14]
[319557752,1710856245801,-806.41845803,0.00109997,14]
[319557753,1710856245811,-279.76011797,0.00109997,14]
[319557754,1710856245821,-298.431,0.00109997,14]
[319557755,1710856245830,-212.15239579,0.00109997,14]
[319557756,1710856245839,-155.89850452,0.00109997,14]
[319557757,1710856245850,-155.10547172,0.00109997,14]
[319557758,1710856245859,-259.0768403,0.00109997,14]
[319557759,1710856245869,-547.86352554,0.00109997,14]
[319557760,1710856245879,-331.16917641,0.00109997,14]
[319557761,1710856245888,-705.30362658,0.00109997,14]
[319557762,1710856245897,-1607.10940545,0.00109997,14]
[319557763,1710856245907,-280.02709424,0.00109997,14]
[319557764,1710856245917,-198.14731074,0.00109997,14]
[319557765,1710856245927,-229.23332363,0.00109997,14]
[319557766,1710856245937,-639.62044882,0.00109997,14]
[319557767,1710856245947,-3152.8068959,0.00109997,14]
[319557768,1710856245959,-210.69662867,0.00109997,14]
[319557769,1710856245969,-857.54289022,0.00109998,14]
[319557770,1710856245979,-155.0,0.00109998,14]
[319557771,1710856245989,-500.0,0.00109998,120]
[319557773,1710856245999,-500.0,0.00109998,120]
[319557775,1710856246008,-1524.90215778,0.00109998,30]
[319557777,1710856246018,-218.2189913,0.00109999,14]
[319557779,1710856246027,-228.53498416,0.00109999,14]
[319557780,1710856246036,-154.90705577,0.00109999,120]
[319557781,1710856246045,-155.05182361,0.00109999,14]
[319557782,1710856246055,-225.66899149,0.00109999,14]
[319557783,1710856246064,-151.0,0.001112,120]
[319557784,1710856246073,-5000.0,0.00111685,120]
[319557785,1710856246083,-417.68895945,0.00120411,120]
[319557786,1710856246093,-1667.75,0.00125276,120]
[319557787,1710856246102,-417.68895945,0.00125396,120]
[319557788,1710856246111,-500.0,0.00128506,90]
[319557790,1710856246120,-500.0,0.0012878,90]
[319557791,1710856246129,-500.0,0.00129054,90]
[319557793,1710856246139,-500.0,0.00129328,90]
[319557795,1710856246148,-500.0,0.00129602,90]
[319557797,1710856246158,-500.0,0.00129876,90]
[319557798,1710856246167,-500.0,0.0013015,90]
[319557799,1710856246178,-500.0,0.00130424,90]
[319557800,1710856246188,-500.0,0.00130698,90]
[319557801,1710856246197,-500.0,0.00130972,90]
[319557802,1710856246210,-500.0,0.00131246,90]
[319557803,1710856246220,-500.0,0.00131794,90]
[319557804,1710856246230,-500.0,0.00132342,90]
[319557805,1710856246240,-500.0,0.0013289,90]
[319557806,1710856246250,-500.0,0.00133438,90]
[319557807,1710856246259,-500.0,0.00133986,90]
[319557808,1710856246270,-500.0,0.00134534,90]
[319557809,1710856246280,-500.0,0.00135082,90]
[319557810,1710856246290,-500.0,0.0013563,90]
[319557811,1710856246299,-5000.0,0.00135882,120]
[319557813,1710856246308,-473.01888723,0.00136178,90]
[319557814,1710856246317,-417.68895945,0.00144214,120]
[319557816,1710856246326,-500.0,0.00149999,120]
[319557817,1710856246336,-500.0,0.00149999,120]
[319557818,1710856246345,-113241.06250141,0.0015,120]
[319557819,1710856246355,-100000.0,0.0015,120]
[319557820,1710856246364,-158.181088,0.0015,120]
[319557821,1710856246374,-158.181088,0.0015,120]
[319557822,1710856246383,-252.280578,0.0015,120]
[319557823,1710856246393,-252.280578,0.0015,120]
[319557824,1710856246403,-151.0,0.0015,120]
[319557825,1710856246412,-151.0,0.0015,120]
[319557827,1710856246421,-500.0,0.00150683,120]
[319557829,1710856246431,-1000.0,0.00150684,7]
[319557831,1710856246440,-1667.75,0.00152673,120]
[319557832,1710856246450,-228.3040324,0.00163233,120]
[319557834,1710856246460,-153.0,0.00163233,120]
[319557836,1710856246474,-153.0,0.00163233,120]
[319557837,1710856246484,-153.0,0.00163233,120]
[319557838,1710856246493,-153.0,0.00163233,120]
[319557839,1710856246503,-153.0,0.00163233,120]
[319557840,1710856246512,-153.0,0.00163233,120]
[319557841,1710856246521,-153.0,0.00163233,120]
[319557842,1710856246531,-153.0,0.00163233,120]
[319557843,1710856246540,-153.0,0.00163233,120]
[319557844,1710856246549,-153.0,0.00163233,120]
[319557845,1710856246558,-164.0,0.00163233,120]
[319557846,1710856246567,-153.0,0.00163233,120]
[319557847,1710856246577,-153.0,0.00163233,120]
[319557848,1710856246586,-153.0,0.00163233,120]
[319557849,1710856246596,-153.0,0.00163233,120]
[319557850,1710856246606,-153.0,0.00163233,120]
[319557851,1710856246615,-153.0,0.00163233,120]
[319557852,1710856246625,-153.0,0.00163233,120]
[319557853,1710856246634,-153.0,0.00163562,120]
[319557854,1710856246705,-153.0,0.00163562,120]
[319557855,1710856246719,-153.0,0.00163562,120]
[319557856,1710856246729,-153.0,0.00163562,120]
[319557857,1710856246738,-153.0,0.00163562,120]
[319557858,1710856246748,-153.0,0.00163562,120]
[319557859,1710856246757,-153.0,0.00163562,120]
[319557860,1710856246767,-153.0,0.00163562,120]
[319557861,1710856246776,-164.0,0.00163562,120]
[319557862,1710856246785,-153.0,0.00163562,120]
[319557863,1710856246794,-153.0,0.00163562,120]
[319557864,1710856246804,-153.0,0.00163562,120]
[319557865,1710856246814,-153.0,0.00163562,120]
[319557866,1710856246824,-153.0,0.00163562,120]
[319557867,1710856246833,-164.0,0.00163562,120]
[319557868,1710856246843,-153.0,0.00163562,120]
[319557869,1710856246853,-153.0,0.00163562,120]
[319557870,1710856246863,-153.0,0.00163562,120]
[319557871,1710856246873,-153.0,0.00163562,120]
[319557872,1710856246883,-153.0,0.00163562,120]
[319557873,1710856246892,-153.0,0.00163562,120]
[319557874,1710856246902,-153.0,0.00163562,120]
[319557875,1710856246912,-151.0,0.00164383,120]
[319557876,1710856246922,-158.181088,0.00164383,120]
[319557877,1710856246931,-158.181088,0.00164383,120]
[319557878,1710856246941,-252.280578,0.00164383,120]
[319557879,1710856246950,-252.280578,0.00164383,120]
[319557880,1710856246959,-4716.0,0.00164383,120]
[319557881,1710856246972,-4716.0,0.00164383,120]
[319557882,1710856246981,-4716.0,0.00164383,120]
[319557883,1710856246990,-4716.0,0.00164383,120]
[319557884,1710856246999,-4716.0,0.00164383,120]
[319557885,1710856247009,-4716.0,0.00164383,120]
[319557886,1710856247018,-4716.0,0.00164383,120]
[319557887,1710856247028,-4716.0,0.00164383,120]
[319557888,1710856247037,-4716.0,0.00164383,120]
[319557889,1710856247046,-4716.0,0.00164383,120]
[319557890,1710856247055,-4716.0,0.00164383,120]
[319557891,1710856247066,-4716.0,0.00164383,120]
[319557892,1710856247076,-4716.0,0.00164383,120]
[319557893,1710856247086,-4716.0,0.00164383,120]
[319557894,1710856247095,-4716.0,0.00164383,120]
[319557895,1710856247105,-4716.0,0.00164383,120]
[319557896,1710856247115,-4716.0,0.00164383,120]
[319557897,1710856247126,-4716.0,0.00164383,120]
[319557898,1710856247135,-4716.0,0.00164383,120]
[319557899,1710856247145,-4716.0,0.00164383,120]
[319557900,1710856247155,-4716.0,0.00164383,120]
[319557901,1710856247164,-4716.0,0.00164383,120]
[319557902,1710856247174,-4716.0,0.00164383,120]
[319557903,1710856247184,-4716.15688107,0.00164383,120]
[319557904,1710856247193,-151.0,0.00164383,120]
[319557905,1710856247205,-151.0,0.00164383,120]
[319557906,1710856247217,-1500.0,0.00164384,120]
[319557907,1710856247227,-1500.0,0.00164384,120]
[319557908,1710856247237,-1500.0,0.00164384,120]
[319557909,1710856247247,-1500.0,0.00164384,120]
[319557910,1710856247257,-1500.0,0.00164384,120]
[319557911,1710856247266,-1500.0,0.00164384,120]
[319557912,1710856247275,-1500.0,0.00164384,120]